bitfinex/quotes_BTCUSD_20250515
["timestamp","ask_amount","ask_price","bid_price","bid_amount"]
[1747325964865,0.34,103220.0,103210.0,0.35165478]
[1747325965066,0.35937486,103220.0,103210.0,0.36619563]
[1747325965395,0.35937477,103220.0,103210.0,0.36619563]
[1747325965602,0.35937467,103220.0,103210.0,0.36619563]
[1747325965976,0.0096872,103220.0,103210.0,0.36619507]
[1747325966171,0.01937468,103220.0,103210.0,0.36619507]
[1747325967823,0.0096872,103220.0,103210.0,0.36619507]
[1747325968024,0.02906215,103220.0,103210.0,0.36619507]
[1747325968644,0.02906215,103220.0,103210.0,0.35069507]
[1747325968832,0.02906215,103220.0,103210.0,0.33469507]
[1747325970003,0.40463779,103220.0,103210.0,0.3250074]
[1747325970204,0.41432555,103220.0,103210.0,0.33469591]
[1747325970416,0.4240134,103220.0,103210.0,0.33469591]
[1747325970651,0.4143262,103220.0,103210.0,0.53749591]
[1747325970842,0.40463835,103220.0,103210.0,0.54718423]
[1747325971155,0.40463835,103220.0,103210.0,0.53749591]
[1747325971330,0.40463835,103220.0,103210.0,0.54718433]
[1747325971555,0.40463835,103220.0,103210.0,0.55687265]
[1747325971756,0.4143263,103220.0,103210.0,0.54718433]
[1747325971953,0.4143263,103220.0,103210.0,0.55687265]
[1747325972124,0.40463835,103220.0,103210.0,0.55687265]
[1747325972471,0.39495059,103220.0,103210.0,0.55687265]
[1747325972668,0.40463844,103220.0,103210.0,0.55687265]
[1747325975054,0.60808737,103220.0,103210.0,0.51326675]
[1747325975263,0.64068737,103220.0,103210.0,0.51326675]
[1747325975428,0.64068737,103220.0,103210.0,0.52295535]
[1747325975852,0.60808737,103220.0,103210.0,0.52295535]
[1747325976053,0.60808737,103220.0,103210.0,0.53264386]
[1747325977103,0.41432648,103220.0,103210.0,0.54233228]
[1747325977304,0.40463844,103220.0,103210.0,0.54233162]
[1747325977726,0.41432639,103220.0,103210.0,0.5326433]
[1747325977936,0.37557564,103220.0,103210.0,0.54233162]
[1747325978147,0.00968729,103220.0,103210.0,0.52295432]
[1747325978314,0.02906271,103220.0,103210.0,0.52967213]
[1747325978641,0.01937467,103220.0,103210.0,0.54421298]
[1747325978861,1.14583566,103230.0,103220.0,0.20344874]
[1747325979075,1.14583566,103230.0,103220.0,0.30075814]
[1747325979276,1.14583566,103230.0,103220.0,0.30075833]
[1747325979500,1.17743566,103230.0,103220.0,0.30075833]
[1747325979705,1.16123566,103230.0,103220.0,0.30075833]
[1747325979905,1.16123566,103230.0,103220.0,0.31044618]
[1747325980110,1.16323566,103230.0,103220.0,0.30075833]
[1747325980301,1.16523566,103230.0,103220.0,0.30075833]
[1747325981151,1.18143566,103230.0,103220.0,0.29107029]
[1747325981393,1.18143566,103230.0,103220.0,0.30075833]
[1747325981752,1.18143566,103230.0,103220.0,0.29107029]
[1747325981952,0.03783734,103230.0,103220.0,0.32013357]
[1747325982176,0.81948211,103230.0,103220.0,0.31044609]
[1747325982384,0.81948211,103230.0,103220.0,0.30075833]
[1747325982580,0.85098211,103230.0,103220.0,0.29107029]
[1747325982791,0.84129557,103230.0,103220.0,0.30075833]
[1747325983522,0.84129557,103230.0,103220.0,0.31044628]
[1747325983714,0.84129557,103230.0,103220.0,0.30075833]
[1747325984304,0.84129557,103230.0,103220.0,0.29107029]
[1747325984755,1.20718439,103230.0,103220.0,0.0973094]
[1747325984971,0.83160875,103230.0,103220.0,0.0973094]
[1747325985170,0.83160875,103230.0,103220.0,0.29107029]
[1747325985532,0.82192174,103230.0,103220.0,0.29107029]
[1747325986323,0.82192174,103230.0,103220.0,0.30075833]
[1747325986518,0.82192174,103230.0,103220.0,0.29107029]
[1747325987246,0.82192174,103230.0,103220.0,0.30075833]
[1747325987817,0.82192174,103230.0,103220.0,0.29107029]
[1747325988030,0.82192174,103230.0,103210.0,0.41595688]
[1747325988238,0.38526359,103220.0,103210.0,0.54718453]
[1747325988563,0.40463892,103220.0,103210.0,0.53745611]
[1747325988761,0.59839981,103220.0,103210.0,0.50838992]
[1747325988968,0.62910028,103220.0,103210.0,0.50838992]
[1747325989158,0.62910028,103220.0,103210.0,0.52480339]
[1747325989368,0.62910028,103220.0,103210.0,0.53449218]
[1747325989579,0.42033939,103220.0,103210.0,0.54418088]
[1747325989790,0.41065088,103220.0,103210.0,0.55386939]
[1747325989999,0.41065088,103220.0,103210.0,0.56355781]
[1747325990191,0.41065088,103220.0,103210.0,0.55386939]
[1747325990404,0.42033883,103220.0,103210.0,0.54418088]
[1747325990614,0.42033883,103220.0,103210.0,0.56355799]
[1747325991155,0.42033883,103220.0,103210.0,0.55386948]
[1747325991419,0.42033883,103220.0,103210.0,0.56355799]
[1747325991567,0.42033883,103220.0,103210.0,0.55386901]
[1747325992645,0.41065088,103220.0,103210.0,0.55386901]
[1747325992943,0.42033883,103220.0,103210.0,0.55386901]
[1747325993141,0.42033883,103220.0,103210.0,0.5441805]
[1747325993345,0.42033883,103220.0,103210.0,0.55386901]
[1747325994178,0.38526284,103220.0,103210.0,0.56355733]
[1747325994379,0.56667033,103230.0,103220.0,0.23736473]
[1747325994582,0.01446398,103230.0,103220.0,0.33467413]
[1747325994783,0.4094126,103230.0,103220.0,0.33467413]
[1747325995000,0.40463544,103230.0,103220.0,0.33467413]
[1747325995231,0.39494862,103230.0,103220.0,0.34139862]
[1747325995432,0.40463553,103230.0,103220.0,0.34139862]
[1747325995636,0.40663544,103230.0,103220.0,0.34139862]
[1747325996172,0.40463544,103230.0,103220.0,0.34139862]
[1747325997622,0.64428995,103230.0,103220.0,0.31233563]
[1747325997844,1.01017952,103230.0,103220.0,0.21017342]
[1747325998056,1.01017952,103230.0,103220.0,0.21986137]
[1747325998266,0.63460388,103230.0,103220.0,0.21986137]
[1747325998474,0.63460388,103230.0,103220.0,0.20048538]
[1747325998717,0.63460388,103230.0,103220.0,0.21017342]
[1747325999167,0.63460388,103230.0,103220.0,0.21986137]
[1747325999373,1.01017952,103230.0,103220.0,0.20048538]
[1747325999631,1.01017952,103230.0,103220.0,0.21017342]
[1747325999762,1.01017952,103230.0,103220.0,0.21986137]
[1747326000382,0.63460388,103230.0,103220.0,0.21986137]
[1747326000823,1.01017952,103230.0,103220.0,0.00672449]
[1747326001034,1.0004927,103230.0,103220.0,0.00672449]
[1747326001463,0.2440365,103220.0,103210.0,0.24411157]
[1747326001687,0.6292998,103220.0,103210.0,0.44659157]
[1747326001904,0.6292998,103220.0,103210.0,0.45628017]
[1747326002103,0.61961214,103220.0,103210.0,0.43690287]
[1747326002305,0.61961214,103220.0,103210.0,0.44659166]
[1747326002527,0.61961214,103220.0,103210.0,0.45628026]
[1747326002737,0.61961214,103220.0,103210.0,0.45828026]
[1747326003238,0.61961214,103220.0,103210.0,0.44859128]
[1747326003450,0.82201214,103220.0,103210.0,0.21120449]
[1747326003659,0.82201214,103220.0,103210.0,0.41467314]
[1747326003803,0.82201214,103220.0,103210.0,0.21219314]
[1747326004003,0.82201214,103220.0,103210.0,0.42436202]
[1747326004221,0.82201214,103220.0,103210.0,0.41567314]
[1747326004662,0.82201214,103220.0,103210.0,0.41863753]
[1747326005853,0.82201214,103220.0,103210.0,0.42832632]
[1747326006050,0.82201214,103220.0,103210.0,0.41863753]
[1747326006287,0.81232438,103220.0,103210.0,0.003]
[1747326006483,1.15232438,103220.0,103210.0,0.20548]
[1747326007480,1.15232438,103220.0,103210.0,0.20248]
[1747326010789,0.0309,103220.0,103210.0,0.0290658]
[1747326010987,0.0304,103260.0,103230.0,0.0326]
[1747326011139,0.0444043,103270.0,103260.0,0.19368584]
[1747326012173,0.93770258,103270.0,103260.0,0.42521842]
[1747326012399,0.91833747,103270.0,103260.0,0.44458615]
[1747326012613,0.91833747,103270.0,103260.0,0.55643574]
[1747326012614,0.54276183,103270.0,103260.0,0.55643574]
[1747326012818,0.00048183,103270.0,103260.0,0.55643574]
[1747326013238,0.37605747,103270.0,103260.0,0.50801609]
[1747326013453,0.37605747,103270.0,103260.0,0.52738438]
[1747326013654,0.00968363,103260.0,103250.0,0.1937046]
[1747326013905,0.60469106,103270.0,103260.0,0.39616584]
[1747326013906,0.05054834,103270.0,103260.0,0.39616584]
[1747326014079,0.42612398,103270.0,103260.0,0.39616584]
[1747326014285,0.62836398,103270.0,103260.0,0.39616584]
[1747326014462,0.62836398,103270.0,103260.0,0.39716584]
[1747326014635,0.63804686,103270.0,103260.0,0.39616584]
[1747326014838,0.62836351,103270.0,103260.0,0.39616584]
[1747326015279,0.63804686,103270.0,103260.0,0.39616584]
[1747326015491,0.01936754,103260.0,103250.0,0.30655485]
[1747326015695,0.01936754,103260.0,103250.0,0.41655477]
[1747326015696,0.38525927,103260.0,103250.0,0.41655477]
[1747326016078,0.38525927,103260.0,103250.0,0.40686983]
[1747326016259,0.39494309,103260.0,103250.0,0.41655496]
[1747326016471,0.38525927,103260.0,103250.0,0.42624]
[1747326016716,0.38525927,103260.0,103250.0,0.42524]
[1747326017266,0.39494309,103260.0,103250.0,0.42524]
[1747326017512,0.38525927,103260.0,103250.0,0.22276]
[1747326017711,0.38525927,103260.0,103250.0,0.43688494]
[1747326017966,0.00968354,103260.0,103250.0,0.44656979]
[1747326018299,0.00968354,103260.0,103250.0,0.44556979]
[1747326018510,0.01936726,103260.0,103250.0,0.43588494]
[1747326018826,0.01936716,103260.0,103250.0,0.4272]
[1747326019181,0.01936707,103260.0,103250.0,0.41751496]
[1747326019381,0.01936707,103260.0,103250.0,0.4272]
[1747326019590,0.58862855,103260.0,103250.0,0.001]
[1747326019797,0.01937317,103230.0,103220.0,0.39620089]
[1747326020001,0.79327335,103230.0,103220.0,0.49351029]
[1747326020210,1.1618515,103230.0,103220.0,0.39620089]
[1747326020433,0.60222008,103230.0,103220.0,0.39620089]
[1747326020635,0.59253317,103230.0,103220.0,0.39620089]
[1747326020836,0.93710881,103230.0,103220.0,0.39620089]
[1747326021042,0.54216,103230.0,103220.0,0.20344884]
[1747326021213,0.20264153,103230.0,103220.0,0.52357328]
[1747326021435,0.00048153,103230.0,103220.0,0.55371413]
[1747326022047,0.00048153,103230.0,103220.0,0.55471413]
[1747326022252,0.00048153,103230.0,103220.0,0.55371413]
[1747326022628,0.00048153,103230.0,103220.0,0.55271413]
[1747326022828,0.00048153,103230.0,103220.0,0.56871413]
[1747326023748,0.00048153,103230.0,103220.0,0.56971413]
[1747326024368,0.00048153,103230.0,103220.0,0.57071413]
[1747326024564,0.00048153,103230.0,103220.0,0.57371413]
[1747326024769,0.00048153,103230.0,103220.0,0.57171413]
[1747326025185,0.00048153,103230.0,103220.0,0.57471413]
[1747326025862,0.00048153,103230.0,103220.0,0.57171413]
[1747326026071,0.00048153,103230.0,103220.0,0.57471413]
[1747326028540,0.00048153,103230.0,103220.0,0.99241413]
[1747326028745,0.00048153,103230.0,103220.0,1.19449413]
[1747326030265,0.00048153,103230.0,103220.0,1.53449413]
[1747326032068,0.00048153,103230.0,103220.0,2.22049413]
[1747326032446,0.00048153,103230.0,103220.0,1.53449413]
[1747326032676,0.00048153,103230.0,103220.0,2.22049413]
[1747326033201,0.00048153,103230.0,103220.0,2.23215335]
[1747326033342,0.00048153,103230.0,103220.0,2.23815335]
[1747326033546,0.00048153,103230.0,103220.0,2.23515335]
[1747326033751,0.00048153,103230.0,103220.0,2.24615335]
[1747326034149,0.00048153,103230.0,103220.0,2.25215335]
[1747326034776,0.00048153,103230.0,103220.0,2.28198649]
[1747326034998,0.00048153,103230.0,103220.0,2.26215335]
[1747326035370,0.2332,103300.0,103290.0,0.22267315]
[1747326035596,0.0312,103300.0,103290.0,0.41503224]
[1747326035823,0.04092795,103300.0,103290.0,0.42471334]
[1747326036041,0.04092795,103300.0,103290.0,0.41503224]
[1747326036263,0.03124816,103300.0,103290.0,0.42441334]
[1747326036564,0.03124816,103300.0,103290.0,0.43409416]
[1747326036774,0.03124816,103300.0,103290.0,0.43409435]
[1747326036990,0.03524816,103300.0,103290.0,0.55562542]
[1747326037218,0.04492795,103300.0,103290.0,0.55562542]
[1747326037424,0.02004816,103300.0,103290.0,0.55562542]
[1747326037644,0.00404816,103300.0,103290.0,0.55562542]
[1747326039136,4.816e-05,103300.0,103290.0,0.55562542]
[1747326039536,0.00104816,103300.0,103290.0,0.55562542]
[1747326042775,0.00104816,103300.0,103290.0,0.57062542]
[1747326043289,0.00104816,103300.0,103290.0,1.00342542]
[1747326043733,0.00104816,103300.0,103290.0,0.58572542]
[1747326043961,0.00104816,103300.0,103290.0,1.00342542]
[1747326044409,0.00104816,103300.0,103290.0,1.34342542]
[1747326044639,0.00104816,103300.0,103290.0,1.37325856]
[1747326045670,0.00104816,103300.0,103290.0,1.38775501]
[1747326045906,4.816e-05,103300.0,103290.0,1.38775501]
[1747326046386,4.816e-05,103300.0,103290.0,1.37325856]
[1747326046824,4.816e-05,103300.0,103290.0,1.37625856]
[1747326047203,4.816e-05,103300.0,103290.0,1.17077781]
[1747326047362,4.816e-05,103300.0,103290.0,1.55014542]
[1747326047572,4.816e-05,103300.0,103290.0,1.53504542]
[1747326048015,4.816e-05,103300.0,103290.0,1.55054542]
[1747326049956,4.816e-05,103300.0,103290.0,1.13284542]
[1747326051918,4.816e-05,103300.0,103290.0,1.15723781]
[1747326052984,4.816e-05,103300.0,103290.0,1.13284542]
[1747326055859,4.816e-05,103300.0,103290.0,1.10234542]
[1747326057637,4.816e-05,103300.0,103290.0,1.52038542]
[1747326058044,4.816e-05,103300.0,103290.0,1.53588542]
[1747326058294,4.816e-05,103300.0,103290.0,1.55108542]
[1747326063013,4.816e-05,103300.0,103290.0,1.96878542]
[1747326063779,4.816e-05,103300.0,103290.0,1.56502542]
[1747326064125,4.816e-05,103300.0,103290.0,1.74096542]
[1747326064956,4.816e-05,103300.0,103290.0,1.51978457]
[1747326065157,4.816e-05,103300.0,103290.0,0.96872457]
[1747326065158,0.03214816,103300.0,103290.0,0.96872457]
[1747326065378,0.04182785,103300.0,103290.0,0.96872457]
[1747326065534,0.03214816,103300.0,103290.0,0.96872457]
[1747326065956,0.04182804,103300.0,103290.0,0.96572457]
[1747326066156,0.04182804,103300.0,103290.0,0.96372457]
[1747326066361,0.25479948,103300.0,103290.0,0.95404365]
[1747326066570,0.63237512,103300.0,103290.0,0.53634413]
[1747326066767,0.63237512,103300.0,103290.0,0.53634431]
[1747326066970,0.63237512,103300.0,103290.0,0.54602532]
[1747326067177,0.62269524,103300.0,103290.0,0.49761898]
[1747326067375,0.82101508,103300.0,103290.0,0.20668]
[1747326067576,0.82101508,103300.0,103290.0,0.40030958]
[1747326068127,0.81133464,103300.0,103290.0,0.20668]
[1747326068956,0.01936201,103290.0,103280.0,0.64073463]
[1747326069167,0.05006173,103290.0,103280.0,0.95440579]
[1747326069378,0.05974292,103290.0,103280.0,0.94472403]
[1747326069586,0.62894889,103290.0,103280.0,0.7220294]
[1747326069782,0.61926788,103290.0,103280.0,0.92535995]
[1747326069982,0.61926788,103290.0,103280.0,0.93504199]
[1747326070198,0.71657728,103290.0,103260.0,0.20819396]
[1747326070406,0.01937036,103250.0,103240.0,0.00968616]
[1747326070610,0.0193712,103240.0,103230.0,0.62150913]
[1747326070817,0.24377467,103250.0,103240.0,0.41704952]
[1747326071040,0.6193506,103250.0,103240.0,0.21364]
[1747326071861,0.95949497,103250.0,103240.0,0.3109494]
[1747326072076,0.95949497,103250.0,103240.0,0.21364]
[1747326073331,0.39021379,103250.0,103240.0,0.44610651]
[1747326073561,0.40958396,103250.0,103240.0,0.436421]
[1747326073761,0.81064437,103250.0,103240.0,0.42673559]
[1747326073979,0.80595933,103250.0,103240.0,0.42673559]
[1747326074182,0.25276437,103250.0,103240.0,0.54341629]
[1747326074295,0.07458339,103250.0,103240.0,0.54341629]
[1747326074495,0.02451341,103250.0,103240.0,0.54341629]
[1747326074745,0.01482894,103250.0,103240.0,0.55795714]
[1747326075390,0.00982894,103250.0,103240.0,0.55795714]
[1747326075590,0.01282894,103250.0,103240.0,0.55795714]
[1747326076655,0.00014437,103250.0,103240.0,0.55795714]
[1747326077175,0.00214437,103250.0,103240.0,0.55795714]
[1747326079429,0.41278943,103250.0,103240.0,0.55807714]
[1747326079616,0.02752894,103250.0,103240.0,0.55807714]
[1747326080086,0.63187898,103250.0,103240.0,0.75233163]
[1747326080268,0.63187898,103250.0,103240.0,0.5241648]
[1747326080448,0.43817438,103250.0,103240.0,0.5435361]
[1747326080622,0.64156411,103250.0,103240.0,0.53385059]
[1747326080833,0.65124934,103250.0,103240.0,0.54353628]
[1747326081062,0.65124934,103250.0,103240.0,0.3110694]
[1747326081272,0.62219497,103250.0,103240.0,0.21376]
[1747326082075,0.62219497,103250.0,103240.0,0.41716952]
[1747326082307,0.62219497,103250.0,103240.0,0.21376]
[1747326083379,0.62219497,103250.0,103240.0,0.41716952]
[1747326084226,0.61250984,103250.0,103240.0,0.41716952]
[1747326084613,0.20342894,103230.0,103220.0,0.203368]
[1747326084815,0.20342894,103230.0,103220.0,0.54350002]
[1747326084816,0.41596208,103230.0,103220.0,0.54350002]
[1747326085016,0.42564881,103230.0,103220.0,0.54350002]
[1747326085415,0.41064881,103230.0,103220.0,0.54350002]
[1747326085640,0.41064871,103230.0,103220.0,0.54350002]
[1747326086414,0.41064871,103230.0,103220.0,0.29098955]
[1747326086415,0.64216457,103230.0,103220.0,0.29098955]
[1747326086686,0.63247813,103230.0,103220.0,0.5144375]
[1747326086885,1.33836714,103230.0,103220.0,0.21376]
[1747326087040,0.21315735,103210.0,103190.0,0.61142874]
[1747326087403,0.39495406,103200.0,103190.0,0.43656]
[1747326087604,0.38526471,103200.0,103190.0,0.2228]
[1747326087813,0.39495388,103200.0,103190.0,0.43656]
[1747326088027,0.83845299,103210.0,103200.0,0.21317762]
[1747326088236,0.64467276,103210.0,103200.0,0.32017637]
[1747326088443,0.65436164,103210.0,103200.0,0.3206579]
[1747326088659,0.65436164,103210.0,103200.0,0.33034716]
[1747326088862,0.65436164,103210.0,103200.0,0.3206579]
[1747326089078,0.83845289,103210.0,103200.0,0.19427997]
[1747326089301,0.83845289,103210.0,103200.0,0.20396979]
[1747326089519,1.17845289,103210.0,103200.0,0.00048153]
[1747326096946,1.55402853,103210.0,103200.0,0.00048153]
[1747326097990,1.55190853,103210.0,103200.0,0.00048153]
[1747326098878,0.58615725,103210.0,103200.0,0.00048153]
[1747326099079,1.55166853,103210.0,103200.0,0.00048153]
[1747326099285,0.01938274,103180.0,103170.0,1.0493384]
[1747326099454,0.39738144,103180.0,103170.0,0.96226022]
[1747326099624,0.39495838,103180.0,103170.0,0.96226022]
[1747326100253,0.39495838,103180.0,103170.0,0.95256814]
[1747326100487,0.39495838,103180.0,103170.0,0.96226022]
[1747326101021,0.38526659,103180.0,103170.0,0.96226022]
[1747326101258,0.40464915,103180.0,103170.0,0.96226022]
[1747326101478,0.39495782,103180.0,103170.0,0.96226022]
[1747326101920,0.61888661,103190.0,103180.0,0.21321913]
[1747326102126,0.62857737,103190.0,103180.0,0.32021986]
[1747326102538,0.62857737,103190.0,103180.0,0.32991109]
[1747326102812,0.62857737,103190.0,103180.0,0.32021986]
[1747326103007,0.59950575,103190.0,103180.0,0.329911]
[1747326103213,0.61888634,103190.0,103180.0,0.329911]
[1747326103414,0.60919595,103190.0,103180.0,0.329911]
[1747326103664,0.62857701,103190.0,103180.0,0.32991109]
[1747326104034,0.62957701,103190.0,103180.0,0.32991109]
[1747326104272,0.61988634,103190.0,103180.0,0.32991109]
[1747326104476,0.62957701,103190.0,103180.0,0.32991109]
[1747326104669,0.63057701,103190.0,103180.0,0.32991109]
[1747326105078,0.63057701,103190.0,103180.0,0.32021986]
[1747326105405,0.63057701,103190.0,103180.0,0.31052844]
[1747326105607,0.64026787,103190.0,103180.0,0.32022014]
[1747326105810,0.64026787,103190.0,103180.0,0.32991147]
[1747326106013,0.63057701,103190.0,103180.0,0.32991147]
[1747326106228,0.26469213,103190.0,103180.0,0.32991147]
[1747326106438,0.64026777,103190.0,103180.0,0.32991147]
[1747326106839,0.63057766,103190.0,103180.0,0.32022014]
[1747326107055,0.63057766,103190.0,103180.0,0.32991147]
[1747326107686,0.82439489,103190.0,103180.0,0.31052872]
[1747326107892,0.82439555,103190.0,103180.0,0.32022005]
[1747326108091,0.63057832,103190.0,103180.0,0.32991146]
[1747326108315,0.82439555,103190.0,103180.0,0.32991156]
[1747326108747,0.82439555,103190.0,103180.0,0.31052872]
[1747326108945,0.85499555,103190.0,103180.0,0.32022023]
[1747326109160,0.85499555,103190.0,103180.0,0.32991165]
[1747326109313,0.85499555,103190.0,103180.0,0.54355165]
[1747326110040,0.66117832,103190.0,103180.0,0.55324298]
[1747326110829,0.85499555,103190.0,103180.0,0.53386023]
[1747326111313,0.03876549,103180.0,103170.0,0.61230166]
[1747326111514,1.33949377,103180.0,103170.0,4.817e-05]
[1747326111820,1.3370706,103180.0,103170.0,4.817e-05]
[1747326113300,1.3370706,103180.0,103170.0,0.00104817]
[1747326113890,0.62043592,103160.0,103150.0,0.21364]
[1747326114090,1.17119592,103160.0,103150.0,0.21364]
[1747326114540,0.19389238,103150.0,103140.0,0.19390913]
[1747326114749,0.01938989,103140.0,103130.0,0.64678866]
[1747326114901,0.39496562,103140.0,103130.0,0.74414622]
[1747326115511,0.38527054,103140.0,103130.0,0.74414622]
[1747326115712,0.38527054,103140.0,103130.0,0.53392919]
[1747326115713,0.39496562,103140.0,103130.0,0.53392919]
[1747326115912,0.39496562,103140.0,103130.0,0.53592919]
[1747326116150,0.01938819,103150.0,103140.0,0.22299681]
[1747326116396,0.6150976,103150.0,103140.0,0.33000111]
[1747326116685,0.62479193,103150.0,103140.0,0.33000111]
[1747326116881,0.6150976,103150.0,103140.0,0.33000111]
[1747326117084,0.43685506,103160.0,103150.0,0.22297556]
[1747326117285,0.60520176,103160.0,103150.0,0.22297556]
[1747326117503,0.41434882,103160.0,103150.0,0.21328132]
[1747326117781,0.0193882,103150.0,103140.0,0.5339863]
[1747326118005,0.39496384,103150.0,103140.0,0.54368129]
[1747326118197,0.40565817,103150.0,103140.0,0.54368129]
[1747326118377,0.41435269,103150.0,103140.0,0.5339863]
[1747326118581,0.40465817,103150.0,103140.0,0.5436812]
[1747326118821,0.40465817,103150.0,103140.0,0.54368129]
[1747326119024,0.39496384,103150.0,103140.0,0.55337619]
[1747326119251,0.40565836,103150.0,103140.0,0.52429122]
[1747326119382,0.40565836,103150.0,103140.0,0.5339863]
[1747326119586,0.63085074,103150.0,103140.0,0.50490058]
[1747326119878,0.63085074,103150.0,103140.0,0.51459604]
[1747326120018,0.64054535,103150.0,103140.0,0.52429131]
[1747326120216,0.06138272,103150.0,103140.0,0.53398649]
[1747326120409,0.43695836,103150.0,103140.0,0.52429141]
[1747326120614,0.42726384,103150.0,103140.0,0.53398649]
[1747326120846,0.43695827,103150.0,103140.0,0.54368148]
[1747326121052,0.63085065,103150.0,103140.0,0.52429141]
[1747326121221,0.63085065,103150.0,103140.0,0.53398668]
[1747326121535,0.63085065,103150.0,103140.0,0.40763118]
[1747326121536,0.62115669,103150.0,103140.0,0.40763118]
[1747326121884,1.16062245,103150.0,103140.0,0.21372]
[1747326127533,1.16062245,103150.0,103140.0,0.40763118]
[1747326127732,0.21969414,103150.0,103140.0,0.43671653]
[1747326127941,0.45228375,103150.0,103140.0,0.42702163]
[1747326128143,0.44258989,103150.0,103140.0,0.42702163]
[1747326128380,0.43289575,103150.0,103140.0,0.42702182]
[1747326128562,0.80847139,103150.0,103140.0,0.44641208]
[1747326128969,0.80847139,103150.0,103140.0,0.41732655]
[1747326129200,0.79877715,103150.0,103140.0,0.41732655]
[1747326129735,0.79877715,103150.0,103140.0,0.42702182]
[1747326130352,0.79877715,103150.0,103140.0,0.41732673]
[1747326130552,0.82158263,103150.0,103140.0,0.21372]
[1747326133822,0.82158263,103150.0,103130.0,0.23275991]
[1747326133823,0.20360655,103140.0,103130.0,4.816e-05]
[1747326134040,0.98625783,103140.0,103130.0,4.816e-05]
[1747326134467,0.61068219,103140.0,103130.0,4.816e-05]
[1747326135087,0.59428219,103140.0,103130.0,4.816e-05]
[1747326135496,0.59428219,103140.0,103130.0,0.00104816]
[1747326135833,0.60958219,103140.0,103130.0,0.00104816]
[1747326138605,0.98515783,103140.0,103130.0,0.00104816]
[1747326139060,1.37355783,103140.0,103130.0,0.00104816]
[1747326140476,1.37355783,103140.0,103130.0,4.816e-05]
[1747326140697,1.37555783,103140.0,103130.0,4.816e-05]
[1747326140877,1.58017663,103140.0,103130.0,4.816e-05]
[1747326141531,1.58017663,103140.0,103130.0,0.00104816]
[1747326141855,1.58017663,103140.0,103130.0,4.816e-05]
[1747326142262,1.58217663,103140.0,103130.0,4.816e-05]
[1747326143995,1.58017663,103140.0,103130.0,4.816e-05]
[1747326144400,1.58417663,103140.0,103130.0,4.816e-05]
[1747326144621,1.58217663,103140.0,103130.0,4.816e-05]
[1747326144870,1.58517663,103140.0,103130.0,4.816e-05]
[1747326145610,1.57517663,103140.0,103130.0,4.816e-05]
[1747326145811,1.63606723,103140.0,103130.0,4.816e-05]
[1747326146017,1.34182637,103140.0,103130.0,4.816e-05]
[1747326146548,1.54842637,103140.0,103130.0,4.816e-05]
[1747326148852,1.65573577,103140.0,103130.0,4.816e-05]
[1747326151398,1.54842637,103140.0,103130.0,4.816e-05]
[1747326151604,1.54758637,103140.0,103130.0,4.816e-05]
[1747326152027,1.54754637,103140.0,103130.0,4.816e-05]
[1747326152474,1.34182637,103140.0,103130.0,4.816e-05]
[1747326152626,1.53212637,103140.0,103130.0,4.816e-05]
[1747326152836,0.21060655,103140.0,103130.0,4.816e-05]
[1747326153047,0.80139746,103140.0,103130.0,4.816e-05]
[1747326153204,1.14139746,103140.0,103130.0,4.816e-05]
[1747326153619,1.5099731,103140.0,103130.0,4.816e-05]
[1747326153824,1.13639746,103140.0,103130.0,4.816e-05]
[1747326154103,1.5139731,103140.0,103130.0,4.816e-05]
[1747326154269,1.5119731,103140.0,103130.0,4.816e-05]
[1747326154470,1.5099731,103140.0,103130.0,4.816e-05]
[1747326154627,1.13839746,103140.0,103130.0,4.816e-05]
[1747326156661,0.93287746,103140.0,103130.0,4.816e-05]
[1747326156873,1.13791746,103140.0,103130.0,4.816e-05]
[1747326157233,1.5134931,103140.0,103130.0,4.816e-05]
[1747326158467,0.93287746,103140.0,103130.0,0.35087591]
[1747326158602,0.77175728,103140.0,103130.0,0.34118007]
[1747326158802,1.14733292,103140.0,103130.0,0.34118007]
[1747326159056,1.14737292,103140.0,103130.0,0.34118007]
[1747326159410,1.13767765,103140.0,103130.0,0.34118007]
[1747326160788,1.13767765,103140.0,103130.0,0.35087609]
[1747326161917,1.13767765,103140.0,103130.0,0.34118007]
[1747326163058,1.13767765,103140.0,103130.0,0.350876]
[1747326163359,1.1473732,103140.0,103130.0,0.34118007]
[1747326163546,1.1473732,103140.0,103130.0,0.35087609]
[1747326164129,1.1463732,103140.0,103130.0,0.35087609]
[1747326164895,1.1463732,103140.0,103130.0,0.54514007]
[1747326165237,1.1463732,103140.0,103130.0,0.54514016]
[1747326165442,1.1463732,103140.0,103130.0,0.55483628]
[1747326165647,1.49286246,103140.0,103130.0,0.20400816]
[1747326165820,1.11728682,103140.0,103130.0,0.20400816]
[1747326166542,1.11728682,103140.0,103130.0,0.39793815]
[1747326166751,1.49286246,103140.0,103130.0,0.39793815]
[1747326166943,0.91348682,103140.0,103130.0,0.19397815]
[1747326167198,0.004,103140.0,103130.0,0.91281603]
[1747326167390,0.004,103140.0,103130.0,1.11579676]
[1747326168770,0.002,103140.0,103130.0,1.11579676]
[1747326168964,0.39495782,103180.0,103170.0,0.21323999]
[1747326169198,0.39495782,103180.0,103170.0,0.41716009]
[1747326169376,0.38526668,103180.0,103170.0,0.42685254]
[1747326169582,0.37557564,103180.0,103170.0,0.42685254]
[1747326169783,0.58910678,103180.0,103170.0,0.42685254]
[1747326169987,0.58910678,103180.0,103170.0,0.41716018]
[1747326170189,1.14893477,103180.0,103160.0,0.20357186]
[1747326170392,0.76084326,103170.0,103160.0,0.50477981]
[1747326170591,0.38526762,103170.0,103160.0,0.5144732]
[1747326170795,0.38526762,103170.0,103160.0,0.51447329]
[1747326171245,0.38526762,103170.0,103160.0,0.52416659]
[1747326171450,0.37557564,103170.0,103160.0,0.53385961]
[1747326171728,0.37557564,103170.0,103160.0,0.54905961]
[1747326172240,0.95818113,103180.0,103170.0,0.1938548]
[1747326172599,0.94848952,103180.0,103170.0,0.1938548]
[1747326172799,0.95818132,103180.0,103170.0,0.1938548]
[1747326173319,0.97388132,103180.0,103170.0,0.1938548]
[1747326173705,0.97311051,103180.0,103170.0,0.1938548]
[1747326174104,0.96341871,103180.0,103170.0,0.1938548]
[1747326174577,0.97311051,103180.0,103170.0,0.1938548]
[1747326174752,0.98961051,103180.0,103170.0,0.1938548]
[1747326174950,0.97991871,103180.0,103170.0,0.1938548]
[1747326175159,0.98961041,103180.0,103170.0,0.1938548]
[1747326175945,0.78654122,103180.0,103170.0,0.1938548]
[1747326176132,0.99011447,103180.0,103170.0,0.1938548]
[1747326177179,0.98042277,103180.0,103170.0,0.1938548]
[1747326177748,0.99011447,103180.0,103170.0,0.1938548]
[1747326178152,0.05987642,103170.0,103160.0,0.39777692]
[1747326178359,0.43787554,103170.0,103160.0,0.39777692]
[1747326178563,0.4257597,103170.0,103160.0,0.19385692]
[1747326178889,0.43545206,103170.0,103160.0,0.20355059]
[1747326179082,0.43545206,103170.0,103160.0,0.19385692]
[1747326179853,0.43545206,103170.0,103160.0,0.20355059]
[1747326180253,0.4257597,103170.0,103160.0,0.20355059]
[1747326180426,0.43545197,103170.0,103160.0,0.21324417]
[1747326180849,0.4257597,103170.0,103160.0,0.21324417]
[1747326181050,0.43545187,103170.0,103160.0,0.21324417]
[1747326181253,0.95984031,103180.0,103170.0,0.1938548]